bitfinex/quotes_SOLUSD_20250106
["timestamp","ask_amount","ask_price","bid_price","bid_amount"]
[1736149759598,9.16875374,215.44,215.38,10.76855374]
[1736149760385,9.16875374,215.45,215.39,9.16875374]
[1736149760987,9.16875374,215.45,215.38,10.76855374]
[1736149763000,11.6023,215.48,215.38,10.76855374]
[1736149763187,9.16875374,215.45,215.39,9.16875374]
[1736149763806,9.16875374,215.45,215.38,10.76855374]
[1736149765100,11.6023,215.48,215.4,9.16875374]
[1736149765306,20.77105374,215.48,215.41,9.16875374]
[1736149765603,9.16875374,215.48,215.41,9.16875374]
[1736149766179,9.16875374,215.47,215.41,9.16875374]
[1736149767403,9.16875374,215.46,215.4,9.16875374]
[1736149768100,9.16875374,215.45,215.41,20.0]
[1736149769791,11.6013,215.5,215.41,20.0]
[1736149769792,9.16875374,215.46,215.41,20.0]
[1736149771210,9.16875374,215.44,215.38,52.0998]
[1736149771412,9.16875374,215.44,215.38,61.26855374]
[1736149771920,9.16875374,215.44,215.38,52.0998]
[1736149772815,9.16875374,215.43,215.38,1.5998]
[1736149774715,9.16875374,215.41,215.38,1.5998]
[1736149775212,9.16875374,215.4,215.38,1.5998]
[1736149775407,9.16875374,215.39,215.38,1.5998]
[1736149777525,9.16875374,215.4,215.38,1.5998]
[1736149778218,9.16875374,215.4,215.36,6.1502]
[1736149780319,9.16875374,215.4,215.33,10.68385374]
[1736149782229,9.16875374,215.41,215.35,9.16875374]
[1736149783129,9.16875374,215.4,215.34,29.86514578]
[1736149785219,9.16875374,215.41,215.35,9.16875374]
[1736149787425,9.16875374,215.4,215.34,29.86514578]
[1736149789807,9.16875374,215.4,215.34,20.69639204]
[1736149791820,9.16875374,215.39,215.34,0.69639204]
[1736149792120,9.16875374,215.39,215.33,10.68385374]
[1736149792324,9.16875374,215.39,215.33,1.5151]
[1736149800736,9.16875374,215.38,215.33,1.5151]
[1736149801639,9.16875374,215.39,215.33,1.5151]
[1736149802015,11.6042,215.44,215.33,1.5151]
[1736149802016,9.16875374,215.38,215.33,1.5151]
[1736149804035,9.16875374,215.37,215.33,1.5151]
[1736149805536,9.16875374,215.36,215.33,1.5151]
[1736149808819,9.16875374,215.35,215.33,1.5151]
[1736149809237,9.16875374,215.34,215.28,1.5581]
[1736149809431,9.16875374,215.31,215.28,1.5581]
[1736149811343,9.16875374,215.3,215.28,1.5581]
[1736149811742,9.16875374,215.31,215.28,1.5581]
[1736149813942,11.6085,215.36,215.28,1.5581]
[1736149813943,9.16875374,215.3,215.28,1.5581]
[1736149815826,9.16875374,215.31,215.28,1.5581]
[1736149816025,9.16875374,215.32,215.28,1.5581]
[1736149816650,9.16875374,215.33,215.28,1.5581]
[1736149818752,9.16875374,215.32,215.28,1.5581]
[1736149819048,9.16875374,215.31,215.28,1.5581]
[1736149821650,9.16875374,215.32,215.28,1.5581]
[1736149821863,9.16875374,215.33,215.28,1.5581]
[1736149822553,9.16875374,215.35,215.29,9.16875374]
[1736149822940,11.6063,215.4,215.28,10.72685374]
[1736149823137,9.16875374,215.34,215.28,10.72685374]
[1736149826256,9.16875374,215.35,215.28,10.72685374]
[1736149826645,9.16875374,215.34,215.28,10.72685374]
[1736149827357,9.16875374,215.35,215.29,9.16875374]
[1736149828158,13.6263,215.4,215.29,9.16875374]
[1736149828359,9.16875374,215.36,215.29,9.86529619]
[1736149830457,7.2544275,215.45,215.39,20.0]
[1736149830760,7.2544275,215.45,215.42,9.16875374]
[1736149831453,9.16875374,215.49,215.42,9.16875374]
[1736149831659,9.16875374,215.5,215.43,9.16875374]
[1736149832436,9.16875374,215.51,215.44,9.86482812]
[1736149832667,7.2544275,215.57,215.46,9.16875374]
[1736149832840,7.2544275,215.57,215.48,9.16875374]
[1736149832841,9.16875374,215.55,215.48,9.16875374]
[1736149833049,9.16875374,215.55,215.49,9.16875374]
[1736149833264,9.16875374,215.56,215.49,10.67565374]
[1736149833469,9.16875374,215.56,215.49,11.37153242]
[1736149834153,9.16875374,215.57,215.5,9.16875374]
[1736149837370,9.16875374,215.56,215.5,9.16875374]
[1736149837667,9.16875374,215.56,215.49,11.37153242]
[1736149837872,9.16875374,215.53,215.49,1.5069]
[1736149838374,9.16875374,215.54,215.49,1.5069]
[1736149839055,36.67501496,215.6,215.49,1.5069]
[1736149839056,9.16875374,215.55,215.49,1.5069]
[1736149839446,9.16875374,215.56,215.49,10.67565374]
[1736149839647,9.16875374,215.56,215.5,9.16875374]
[1736149841369,9.16875374,215.56,215.49,10.67565374]
[1736149842253,9.16875374,215.55,215.51,20.0]
[1736149843176,9.16875374,215.54,215.51,20.0]
[1736149844056,9.16875374,215.54,215.49,1.5069]
[1736149847079,9.16875374,215.55,215.49,1.5069]
[1736149849491,11.5955,215.61,215.49,11.37154996]
[1736149849676,9.16875374,215.56,215.49,11.37154996]
[1736149849877,9.16875374,215.56,215.5,9.16875374]
[1736149850587,9.16875374,215.56,215.49,11.37154996]
[1736149853790,9.16875374,215.54,215.49,1.5069]
[1736149854295,9.16875374,215.53,215.49,1.5069]
[1736149855098,9.16875374,215.52,215.49,1.5069]
[1736149855301,9.16875374,215.53,215.49,1.5069]
[1736149857700,9.16875374,215.55,215.49,1.5069]
[1736149859395,9.16875374,215.56,215.49,10.67565374]
[1736149859601,8.1481,215.72,215.54,9.16875374]
[1736149859920,9.16875374,215.63,215.56,9.16875374]
[1736149860099,9.16875374,215.62,215.55,9.16875374]
[1736149860291,9.16875374,215.61,215.55,20.0]
[1736149860490,9.16875374,215.6,215.53,9.16875374]
[1736149860898,9.16875374,215.59,215.52,29.16875374]
[1736149863207,9.16875374,215.59,215.53,9.16875374]
[1736149865210,9.16875374,215.59,215.52,29.16875374]
[1736149865388,9.16875374,215.59,215.53,20.0]
[1736149867319,9.16875374,215.57,215.5,0.69575864]
[1736149867618,9.16875374,215.53,215.49,1.5069]
[1736149869715,11.5949,215.62,215.49,1.5069]
[1736149869923,11.5949,215.62,215.49,10.67565374]
[1736149870110,9.16875374,215.55,215.49,10.67565374]
[1736149870510,9.16875374,215.55,215.49,1.5069]
[1736149871107,36.67501496,215.6,215.49,1.5069]
[1736149871108,9.16875374,215.54,215.49,1.5069]
[1736149872016,9.16875374,215.53,215.49,1.5069]
[1736149875223,9.16875374,215.51,215.44,10.78235374]
[1736149875414,9.16875374,215.5,215.44,1.6136]
[1736149877438,9.16875374,215.5,215.44,10.78235374]
[1736149877626,9.16875374,215.49,215.44,1.6136]
[1736149879437,9.16875374,215.5,215.44,10.78235374]
[1736149880235,9.16875374,215.51,215.44,10.78235374]
[1736149881831,9.16875374,215.51,215.45,9.16875374]
[1736149882917,9.16875374,215.51,215.44,10.78235374]
[1736149890442,9.16875374,215.53,215.44,10.78235374]
[1736149892935,11.5971,215.57,215.44,10.78235374]
[1736149893145,9.16875374,215.54,215.46,9.16875374]
[1736149893527,9.16875374,215.54,215.47,9.16875374]
[1736149898443,29.16875374,215.57,215.49,9.16875374]
[1736149898750,9.16875374,215.57,215.49,9.16875374]
[1736149899137,11.5956,215.6,215.49,9.16875374]
[1736149899344,9.16875374,215.57,215.5,9.16875374]
[1736149899739,11.5956,215.6,215.51,1.5823]
[1736149900047,9.16875374,215.57,215.51,1.5823]
[1736149900246,9.16875374,215.56,215.51,1.5823]
[1736149902940,9.16875374,215.55,215.51,1.5823]
[1736149904259,9.16875374,215.54,215.51,1.5823]
[1736149905257,9.16875374,215.53,215.46,30.75585374]
[1736149905447,9.16875374,215.52,215.46,1.5871]
[1736149906135,9.16875374,215.51,215.46,1.5871]
[1736149909987,9.16875374,215.52,215.46,1.5871]
[1736149910273,9.16875374,215.53,215.46,10.75585374]
[1736149910948,9.16875374,215.55,215.48,9.16875374]
[1736149912177,9.16875374,215.55,215.49,9.16875374]
[1736149912989,9.16875374,215.55,215.48,9.16875374]
[1736149913280,9.16875374,215.54,215.48,9.16875374]
[1736149914896,9.16875374,215.54,215.47,9.16875374]
[1736149916053,11.5975,215.57,215.47,9.16875374]
[1736149916270,9.16875374,215.54,215.47,9.16875374]
[1736149918673,9.16875374,215.52,215.46,3.6071]
[1736149919204,9.16875374,215.51,215.46,1.5871]
[1736149920799,9.16875374,215.5,215.46,1.5871]
[1736149921914,9.16875374,215.51,215.46,1.5871]
[1736149922303,9.16875374,215.52,215.46,1.5871]
[1736149922914,9.16875374,215.51,215.46,1.5871]
[1736149926027,9.16875374,215.52,215.46,10.75585374]
[1736149927561,9.16875374,215.55,215.48,9.16875374]
[1736149929195,11.5968,215.58,215.5,9.16875374]
[1736149929434,9.16875374,215.56,215.5,9.16875374]
[1736149930922,9.16875374,215.55,215.49,9.16875374]
[1736149931228,9.16875374,215.54,215.48,9.16875374]
[1736149932612,11.5968,215.58,215.48,9.16875374]
[1736149932817,9.16875374,215.54,215.48,9.16875374]
[1736149933226,9.16875374,215.55,215.48,9.16875374]
[1736149936134,11.5968,215.58,215.48,9.16875374]
[1736149936326,9.16875374,215.55,215.48,9.16875374]
[1736149940051,11.5968,215.58,215.49,9.16875374]
[1736149940251,7.2544275,215.6,215.51,15.48205374]
[1736149940453,9.16875374,215.58,215.52,10.77165374]
[1736149942157,9.16875374,215.58,215.52,1.6029]
[1736149942847,9.16875374,215.57,215.52,1.6029]
[1736149943013,9.16875374,215.56,215.52,1.6029]
[1736149943417,9.16875374,215.54,215.52,1.6029]
[1736149943632,9.16875374,215.56,215.52,1.6029]
[1736149944644,18.8494275,215.61,215.52,1.6029]
[1736149944819,9.16875374,215.56,215.52,1.6029]
[1736149945219,9.16875374,215.57,215.52,1.6029]
[1736149946442,7.2544275,215.63,215.52,10.77165374]
[1736149946625,9.16875374,215.59,215.52,10.77165374]
[1736149948047,9.16875374,215.58,215.52,1.6029]
[1736149948427,9.16875374,215.57,215.52,1.6029]
[1736149951649,9.16875374,215.58,215.52,1.6029]
[1736149954027,9.16875374,215.57,215.52,1.6029]
[1736149954265,9.16875374,215.56,215.52,1.6029]
[1736149955649,9.16875374,215.57,215.52,1.6029]
[1736149955950,9.16875374,215.58,215.52,1.6029]
[1736149959252,9.16875374,215.57,215.52,1.6029]
[1736149959454,9.16875374,215.56,215.52,1.6029]
[1736149960024,9.16875374,215.54,215.52,1.6029]
[1736149961657,36.67501496,215.6,215.52,1.6029]
[1736149961658,11.595,215.61,215.52,1.6029]
[1736149961858,9.16875374,215.56,215.52,1.6029]
[1736149962056,9.16875374,215.57,215.52,1.6029]
[1736149965168,9.16875374,215.56,215.52,1.6029]
[1736149965543,9.16875374,215.56,215.54,20.0]
[1736149965748,7.2544275,215.65,215.52,1.6029]
[1736149965749,9.16875374,215.6,215.52,1.6029]
[1736149965950,9.16875374,215.58,215.52,3.6229]
[1736149966458,9.16875374,215.58,215.52,1.6029]
[1736149970348,9.16875374,215.59,215.52,10.77165374]
[1736149972066,9.16875374,215.6,215.53,9.16875374]
[1736149973249,9.16875374,215.61,215.53,9.16875374]
[1736149974155,9.16875374,215.61,215.54,9.16875374]
[1736149974857,9.16875374,215.61,215.54,29.16875374]
[1736149975870,13.6118,215.67,215.55,9.16875374]
[1736149976170,9.16875374,215.62,215.55,9.16875374]
[1736149977067,9.16875374,215.61,215.54,29.16875374]
[1736149988896,9.16875374,215.6,215.54,20.0]
[1736149993682,9.16875374,215.61,215.54,20.0]
[1736149994479,9.16875374,215.6,215.52,1.6029]
[1736149994669,9.16875374,215.6,215.53,9.16875374]
[1736149995466,11.5933,215.65,215.54,9.16875374]
[1736149995785,9.16875374,215.6,215.54,9.16875374]
[1736149995980,9.16875374,215.59,215.53,9.16875374]
[1736149996362,9.16875374,215.6,215.53,9.16875374]
[1736149996567,9.16875374,215.59,215.52,10.77165374]
[1736149997181,9.16875374,215.58,215.52,10.77165374]
[1736149997359,9.16875374,215.58,215.52,1.6029]
[1736149998382,20.0,215.63,215.52,1.6029]
[1736149998590,9.16875374,215.58,215.52,10.77165374]
[1736150004288,9.16875374,215.59,215.52,10.77165374]
[1736150004480,31.5939,215.63,215.53,9.16875374]
[1736150004677,9.16875374,215.6,215.53,9.16875374]
[1736150004864,31.5939,215.63,215.53,9.16875374]
[1736150005068,9.16875374,215.59,215.53,9.16875374]
[1736150005269,9.16875374,215.59,215.52,10.77165374]
[1736150006295,9.16875374,215.6,215.53,9.16875374]
[1736150007288,11.5939,215.63,215.54,9.16875374]
[1736150007494,9.16875374,215.6,215.53,9.16875374]
[1736150007990,9.16875374,215.59,215.52,1.6029]
[1736150008295,9.16875374,215.58,215.52,1.6029]
[1736150008470,9.16875374,215.6,215.53,9.16875374]
[1736150009672,9.16875374,215.59,215.52,10.77165374]
[1736150013597,11.5939,215.63,215.53,9.16875374]
[1736150013598,9.16875374,215.6,215.53,9.16875374]
[1736150014198,9.16875374,215.6,215.52,10.77165374]
[1736150016513,20.8667275,215.66,215.53,9.16875374]
[1736150016682,9.16875374,215.61,215.54,9.16875374]
[1736150018604,9.16875374,215.6,215.53,9.16875374]
[1736150018798,9.16875374,215.6,215.52,10.77165374]
[1736150019588,9.16875374,215.6,215.53,9.16875374]
[1736150025509,23.776884,215.65,215.53,9.16875374]
[1736150025708,9.16875374,215.6,215.53,9.16875374]
[1736150029828,9.16875374,215.58,215.52,1.6029]
[1736150030299,9.16875374,215.59,215.52,10.77165374]
[1736150032611,9.16875374,215.58,215.52,1.6029]
[1736150034217,9.16875374,215.58,215.52,10.77165374]
[1736150034731,11.5941,215.63,215.52,10.77165374]
[1736150034911,9.16875374,215.58,215.52,10.77165374]
[1736150035610,9.16875374,215.54,215.52,1.6029]
[1736150037231,9.16875374,215.53,215.47,10.71725374]
[1736150037516,9.16875374,215.52,215.47,1.5485]
[1736150038501,9.16875374,215.51,215.47,1.5485]
[1736150039623,9.16875374,215.52,215.47,1.5485]
[1736150041116,9.16875374,215.53,215.47,1.5485]
[1736150042926,9.16875374,215.56,215.49,9.16875374]
[1736150043131,25.796884,215.59,215.5,9.16875374]
[1736150043132,9.16875374,215.57,215.5,9.16875374]
[1736150046031,30.4411275,215.64,215.51,9.16875374]
[1736150046032,9.16875374,215.58,215.51,9.16875374]
[1736150047019,9.16875374,215.57,215.47,1.5485]
[1736150047219,9.16875374,215.57,215.5,9.16875374]
[1736150050131,9.16875374,215.56,215.49,9.16875374]
[1736150053044,9.16875374,215.57,215.5,9.16875374]
[1736150053646,9.16875374,215.57,215.51,9.16875374]
[1736150054024,9.16875374,215.58,215.51,9.16875374]
[1736150054223,9.16875374,215.57,215.51,9.16875374]
[1736150054942,9.16875374,215.57,215.49,20.0]
[1736150055157,9.16875374,215.57,215.51,9.16875374]
[1736150056237,11.595,215.61,215.52,9.16875374]
[1736150056431,9.16875374,215.58,215.52,9.16875374]
[1736150057634,11.595,215.61,215.52,9.16875374]
[1736150057849,9.16875374,215.58,215.52,9.16875374]
[1736150061746,9.16875374,215.59,215.53,9.16875374]
[1736150062251,9.16875374,215.61,215.55,9.16875374]
[1736150062547,9.16875374,215.61,215.54,1.6156]
[1736150062548,9.16875374,215.6,215.54,10.78435374]
[1736150062928,9.16875374,215.58,215.54,1.6156]
[1736150063129,9.16875374,215.57,215.54,1.6156]
[1736150064039,11.595,215.61,215.54,1.6156]
[1736150064349,9.16875374,215.58,215.54,1.6156]
[1736150067147,9.16875374,215.57,215.54,1.6156]
[1736150068454,9.16875374,215.55,215.48,7.7111]
[1736150068757,9.16875374,215.54,215.48,16.87985374]
[1736150069260,9.16875374,215.54,215.48,7.7111]
[1736150071148,20.0,215.58,215.49,9.16875374]
[1736150071355,9.16875374,215.56,215.49,9.16875374]
[1736150072052,9.16875374,215.56,215.5,9.16875374]
[1736150072359,9.16875374,215.57,215.51,9.16875374]
[1736150073861,9.16875374,215.56,215.5,9.16875374]
[1736150075446,9.16875374,215.57,215.5,9.16875374]
[1736150077062,9.16875374,215.56,215.5,9.16875374]
[1736150077462,9.16875374,215.56,215.49,9.16875374]
[1736150077965,9.16875374,215.55,215.48,16.87985374]
[1736150085468,9.16875374,215.53,215.48,7.7111]
[1736150085653,9.16875374,215.52,215.48,7.7111]
[1736150085851,9.16875374,215.51,215.48,7.7111]
[1736150086455,9.16875374,215.51,215.48,1.6186]
[1736150086862,9.16875374,215.49,215.43,7.8127]
[1736150087170,9.16875374,215.44,215.43,1.6219]
[1736150087768,9.16875374,215.44,215.37,7.7229]
[1736150087983,9.16875374,215.42,215.37,7.7229]
[1736150088343,9.16875374,215.43,215.37,7.7229]
[1736150088659,9.16875374,215.43,215.37,16.89165374]
[1736150089168,9.16875374,215.43,215.37,7.7229]
[1736150089575,9.16875374,215.43,215.37,16.89165374]
[1736150090072,9.16875374,215.44,215.37,16.89165374]
[1736150092563,9.16875374,215.45,215.38,9.16875374]
[1736150092754,9.16875374,215.45,215.37,7.7229]
[1736150092755,9.16875374,215.47,215.4,9.16875374]
[1736150096576,9.16875374,215.47,215.41,9.16875374]
[1736150096978,9.16875374,215.48,215.41,9.16875374]
[1736150097272,13.6182,215.55,215.42,9.16875374]
[1736150097478,9.16875374,215.48,215.42,9.16875374]
[1736150099277,9.16875374,215.49,215.42,9.16875374]
[1736150100279,9.16875374,215.48,215.41,29.16875374]
[1736150101166,9.16875374,215.47,215.41,29.16875374]
[1736150103675,9.16875374,215.48,215.41,29.16875374]
[1736150108988,11.5998,215.52,215.41,29.16875374]
[1736150109168,9.16875374,215.48,215.41,29.16875374]
[1736150109368,20.0,215.53,215.42,10.76355374]
[1736150109569,9.16875374,215.5,215.43,9.16875374]
[1736150109768,9.16875374,215.49,215.42,10.76355374]
[1736150110172,9.16875374,215.48,215.42,10.76355374]
[1736150110769,9.16875374,215.48,215.42,1.5948]
[1736150110970,9.16875374,215.48,215.42,10.76355374]
[1736150113490,9.16875374,215.49,215.42,10.76355374]
[1736150117211,9.16875374,215.48,215.42,1.5948]
[1736150122005,9.16875374,215.47,215.42,1.5948]
[1736150122193,9.16875374,215.43,215.37,7.7225]
[1736150122403,9.16875374,215.42,215.37,7.7225]
[1736150122717,9.16875374,215.43,215.37,7.7225]
[1736150124892,9.16875374,215.42,215.37,7.7225]
[1736150125688,9.16875374,215.43,215.37,7.7225]
[1736150127005,9.16875374,215.42,215.37,7.7225]
[1736150127501,9.16875374,215.41,215.37,1.5317]
[1736150130412,9.16875374,215.42,215.37,1.5317]
[1736150133189,9.16875374,215.43,215.37,1.5317]
[1736150137220,9.16875374,215.42,215.37,1.5317]
[1736150142919,9.16875374,215.41,215.37,1.5317]
[1736150143216,9.16875374,215.42,215.37,1.5317]
[1736150143823,9.16875374,215.39,215.37,1.5317]
[1736150144011,9.16875374,215.39,215.32,16.81675374]
[1736150145121,9.16875374,215.37,215.32,7.648]
[1736150145320,9.16875374,215.39,215.32,16.81675374]
[1736150150331,9.16875374,215.38,215.32,7.648]
[1736150151717,9.16875374,215.37,215.32,7.648]
[1736150151913,9.16875374,215.36,215.32,7.648]
[1736150152307,9.16875374,215.37,215.32,7.648]
[1736150161915,9.16875374,215.34,215.32,1.5665]
[1736150166124,9.16875374,215.35,215.32,1.5665]
[1736150166329,9.16875374,215.36,215.32,1.5665]
[1736150166941,9.16875374,215.37,215.32,1.5665]
[1736150171632,9.16875374,215.39,215.32,1.5665]
[1736150180331,9.16875374,215.37,215.32,1.5665]
[1736150180730,9.16875374,215.38,215.32,1.5665]
[1736150182860,20.77505374,215.4,215.32,1.5665]
[1736150187453,20.77505374,215.4,215.33,9.16875374]
[1736150187660,9.16875374,215.41,215.34,9.16875374]
[1736150193175,9.16875374,215.4,215.34,9.16875374]
[1736150196464,11.6047,215.43,215.35,9.16875374]
[1736150196666,9.16875374,215.41,215.35,9.16875374]
[1736150197851,9.16875374,215.4,215.34,9.16875374]
[1736150200278,9.16875374,215.39,215.33,15.77265374]
[1736150200462,9.16875374,215.38,215.33,6.6039]
[1736150206762,9.16875374,215.39,215.33,15.77265374]
[1736150206954,9.16875374,215.4,215.33,15.77265374]
[1736150209158,13.6247,215.43,215.35,9.16875374]
[1736150209358,9.16875374,215.41,215.35,9.16875374]
[1736150209881,9.16875374,215.41,215.34,9.16875374]
[1736150210679,9.16875374,215.4,215.33,15.77265374]
[1736150212978,9.16875374,215.41,215.34,9.16875374]
[1736150213678,9.16875374,215.39,215.33,15.77265374]
[1736150214283,9.16875374,215.39,215.33,6.6039]
[1736150218387,9.16875374,215.4,215.33,6.6039]
[1736150220590,9.16875374,215.41,215.33,15.77265374]
[1736150223494,9.16875374,215.4,215.33,15.77265374]
[1736150225993,9.16875374,215.42,215.34,9.16875374]
[1736150226165,12.73426686,215.43,215.33,15.77265374]
[1736150226370,9.16875374,215.41,215.33,15.77265374]
[1736150234006,10.71426686,215.43,215.33,15.77265374]
[1736150234176,9.16875374,215.41,215.33,15.77265374]
[1736150235215,10.71426686,215.43,215.33,15.77265374]
[1736150235510,9.16875374,215.41,215.33,15.77265374]
[1736150246114,10.71426686,215.43,215.33,15.77265374]
[1736150246402,9.16875374,215.4,215.33,15.77265374]
[1736150250613,9.16875374,215.41,215.33,15.77265374]
[1736150251412,9.16875374,215.41,215.33,6.6039]
[1736150251711,9.16875374,215.41,215.34,9.16875374]
[1736150253724,9.16875374,215.39,215.33,6.6039]
[1736150254026,9.16875374,215.4,215.33,15.77265374]
[1736150255491,9.16875374,215.4,215.33,6.6039]
[1736150255692,9.16875374,215.4,215.33,15.77265374]
[1736150258610,9.16875374,215.4,215.33,6.6039]
[1736150258792,9.16875374,215.38,215.33,6.6039]
[1736150262616,9.16875374,215.37,215.33,6.6039]
[1736150263400,17.96869436,215.43,215.33,6.6039]
[1736150263604,9.16875374,215.39,215.33,15.77265374]
[1736150265622,9.16875374,215.4,215.33,15.77265374]
[1736150266220,19.98869436,215.43,215.33,15.77265374]
[1736150266411,9.16875374,215.4,215.33,15.77265374]
[1736150268920,17.96869436,215.43,215.34,9.16875374]
[1736150269225,9.16875374,215.41,215.34,9.16875374]
[1736150272325,9.16875374,215.4,215.34,9.16875374]
[1736150274325,9.16875374,215.39,215.33,15.77265374]
[1736150276329,9.16875374,215.4,215.33,15.77265374]
[1736150279007,9.16875374,215.41,215.34,9.16875374]
[1736150283737,6.44713523,215.5,215.39,9.16875374]
[1736150284030,9.16875374,215.47,215.4,9.16875374]
[1736150284236,9.16875374,215.42,215.38,1.6151]
[1736150285430,9.16875374,215.41,215.38,1.6151]
[1736150285638,9.16875374,215.42,215.38,1.6151]
[1736150286440,9.16875374,215.43,215.38,1.6151]
[1736150287128,9.16875374,215.44,215.38,1.6151]
[1736150290127,2.02,215.46,215.38,10.78385374]
[1736150290329,9.16875374,215.45,215.38,10.78385374]
[1736150290528,9.16875374,215.45,215.39,9.16875374]
[1736150294141,11.6029,215.47,215.39,9.16875374]
[1736150294460,9.16875374,215.46,215.39,15.60445374]
[1736150295164,9.16875374,215.47,215.41,9.16875374]
[1736150297131,9.16875374,215.46,215.4,9.16875374]
[1736150297641,9.16875374,215.46,215.39,6.4357]
[1736150297642,9.16875374,215.45,215.39,6.4357]
[1736150297821,9.16875374,215.44,215.39,6.4357]
[1736150302123,9.16875374,215.45,215.39,6.4357]
[1736150311060,9.16875374,215.45,215.39,15.60445374]
[1736150311467,9.16875374,215.44,215.39,6.4357]
[1736150311763,9.16875374,215.45,215.39,6.4357]
[1736150315272,9.16875374,215.44,215.39,6.4357]
[1736150315563,9.16875374,215.44,215.38,1.6151]
[1736150320670,9.16875374,215.43,215.38,1.6151]
[1736150323846,9.16875374,215.42,215.38,1.6151]
[1736150324047,9.16875374,215.41,215.38,1.6151]
[1736150331851,9.16875374,215.42,215.38,1.6151]
[1736150335565,9.16875374,215.43,215.38,1.6151]
[1736150340409,11.6037,215.45,215.38,10.78385374]
[1736150340582,20.77245374,215.45,215.38,10.78385374]
[1736150340787,20.77245374,215.45,215.39,9.16875374]
[1736150341085,9.16875374,215.45,215.39,9.16875374]
[1736150341286,9.16875374,215.46,215.39,9.16875374]
[1736150344484,20.9318915,215.48,215.4,9.16875374]
[1736150344692,9.16875374,215.46,215.4,9.16875374]
[1736150344979,20.9318915,215.48,215.4,9.16875374]
[1736150345186,9.16875374,215.47,215.4,9.16875374]
[1736150345766,9.16875374,215.47,215.41,9.16875374]
[1736150345973,22.79075374,215.48,215.42,9.16875374]
[1736150346469,7.3098915,215.5,215.45,9.16875374]
[1736150346791,14.16875374,215.46,215.34,1.6571]
[1736150347086,9.16875374,215.37,215.34,1.6571]
[1736150347271,9.16875374,215.36,215.33,15.0]
[1736150348081,9.16875374,215.35,215.33,15.0]
[1736150350689,9.16875374,215.36,215.33,15.0]
[1736150353492,9.16875374,215.35,215.33,15.0]
[1736150356098,11.6074,215.38,215.33,15.0]
[1736150356295,9.16875374,215.36,215.33,15.0]
[1736150357182,9.16875374,215.37,215.33,15.0]
[1736150358782,2.02,215.41,215.33,15.0]
[1736150358981,9.16875374,215.39,215.33,15.0]
[1736150359199,2.02,215.43,215.33,24.16875374]
[1736150359405,9.16875374,215.4,215.33,24.16875374]
[1736150360801,9.16875374,215.39,215.33,15.0]
[1736150366319,9.16875374,215.38,215.33,15.0]
[1736150367210,9.16875374,215.42,215.35,10.76215374]
[1736150370223,9.16875374,215.41,215.35,1.5934]
[1736150370919,9.16875374,215.4,215.35,1.5934]
[1736150371130,9.16875374,215.38,215.35,1.5934]
[1736150371623,9.16875374,215.37,215.35,1.5934]
[1736150374344,9.16875374,215.36,215.35,1.5934]
[1736150376520,9.16875374,215.36,215.33,15.0]
[1736150376725,9.16875374,215.34,215.33,15.0]
[1736150379430,11.6063,215.4,215.33,15.0]
[1736150379637,9.16875374,215.36,215.33,15.0]
[1736150380132,9.16875374,215.35,215.33,15.0]
[1736150380509,9.16875374,215.36,215.33,15.0]
[1736150383106,9.16875374,215.37,215.33,15.0]
[1736150384920,9.16875374,215.38,215.33,15.0]
[1736150386938,9.16875374,215.37,215.33,15.0]
[1736150392047,9.16875374,215.36,215.33,15.0]
[1736150392417,9.16875374,215.37,215.33,15.0]
[1736150393625,9.16875374,215.36,215.33,15.0]
[1736150397746,2.02,215.41,215.33,15.0]
[1736150397930,9.16875374,215.36,215.33,15.0]
[1736150400332,9.16875374,215.37,215.33,15.0]
[1736150404850,11.6056,215.42,215.33,15.0]
[1736150405024,9.16875374,215.41,215.33,24.16875374]
[1736150405428,9.16875374,215.4,215.33,24.16875374]
[1736150405866,7.30688135,215.45,215.33,15.0]
[1736150406066,9.32688135,215.45,215.36,9.16875374]
[1736150406272,7.30688135,215.45,215.36,10.80125374]
[1736150406727,9.16875374,215.43,215.36,10.80125374]
[1736150407371,9.16875374,215.42,215.36,1.6325]
[1736150407666,11.6035,215.46,215.37,9.16875374]
[1736150407869,9.16875374,215.43,215.37,9.16875374]
[1736150409150,9.16875374,215.43,215.36,17.45645374]
[1736150409657,9.16875374,215.42,215.36,17.45645374]
[1736150410155,11.6035,215.46,215.36,17.45645374]
[1736150410350,9.16875374,215.44,215.37,9.16875374]
[1736150410760,2.02,215.48,215.39,9.16875374]
[1736150410969,18.90838135,215.49,215.39,9.16875374]
[1736150411131,9.16875374,215.45,215.39,9.16875374]
[1736150413350,9.32688135,215.51,215.4,30.80645374]
[1736150413546,9.16875374,215.48,215.41,9.16875374]
[1736150414775,2.02,215.51,215.41,9.16875374]